[Event "Cracovia Chess Festival A 2021"]
[Site "Cracow"]
[Date "2022.01.03"]
[Round "8.37"]
[White "Konyves, Almos"]
[Black "Dwilewicz, Katarzyna"]
[Result "1-0"]
[ECO "E46"]
[WhiteElo "2250"]
[BlackElo "2100"]
[Annotator "ChessBase"]
[PlyCount "117"]
[EventDate "2021.12.27"]
[EventCountry "POL"]
[SourceTitle "playchess.com"]
[Source "ChessBase"]
[SourceQuality "1"]
[TimeControl "40/5400+30:1800+30"]

1. d4 {[%emt 0:00:05]} Nf6 {[%emt 0:04:51]} 2. c4 {[%emt 0:00:06]} e6 {[%emt 0:00:06]} 3. Nc3 {[%emt 0:00:06]} Bb4 {[%emt 0:00:09]} 4. e3 {[%emt 0:00:05]} O-O {[%emt 0:00:11]} 5. Nge2 {[%emt 0:00:31]} Re8 {[%emt 0:00:22]} 6. a3 {[%emt 0:00:28]} Bf8 {[%emt 0:00:17]} 7. Ng3 {[%emt 0:03:40]} d5 {[%emt 0:03:42]} 8. cxd5 {[%emt 0:00:53]} exd5 {[%emt 0:00:23]} 9. Bd3 {[%emt 0:00:26]} c5 {[%emt 0:01:35]} 10. O-O {[%emt 0:01:50]} Nc6 {[%emt 0:00:06]} 11. dxc5 {[%emt 0:15:30]} Bxc5 {[%emt 0:00:53]} 12. b4 {[%emt 0:09:28]} Bd6 {[%emt 0:01:36]} 13. Nce2 {[%emt 0:02:24]} a5 {[%emt 0:12:43]} 14. b5 {[%emt 0:04:52]} Ne5 {[%emt 0:02:05]} 15. Bb2 {[%emt 0:02:25]} Bd7 {[%emt 0:03:43]} 16. Bd4 {[%emt 0:06:51]} Rc8 {[%emt 0:03:18]} 17. a4 {[%emt 0:13:57]} Nfg4 {[%emt 0:10:53]} 18. h3 {[%emt 0:10:09]} Nxd3 {[%emt 0:03:19]} 19. Qxd3 {[%emt 0:01:08]} Ne5 20. Qb3 {[%emt 0:04:07]} Nc4 {[%emt 0:08:39]} 21. Rad1 {[%emt 0:01:52]} Qh4 {[%emt 0:02:21]} 22. Kh2 {[%emt 0:15:24]} Bg4 {[%emt 0:05:00]} 23. f4 {[%emt 0:03:51]} Bb4 {[%emt 0:10:46]} 24. Qd3 {[%emt 0:01:18]} Rc7 {[%emt 0:06:40]} 25. Kg1 {[%emt 0:00:32]} Bc8 {[%emt 0:03:48]} 26. Rf3 {[%emt 0:00:32]} Rce7 {[%emt 0:04:41]} 27. Nf1 {[%emt 0:00:20]} Nd6 {[%emt 0:05:49]} 28. Bc3 {[%emt 0:00:38]} Bf5 {[%emt 0:01:49]} 29. Qd4 {[%emt 0:00:08]} Bxc3 {[%emt 0:00:10]} 30. Nxc3 {[%emt 0:00:05]} Ne4 {[%emt 0:02:23]} 31. Nxe4 {[%emt 0:00:55]} Bxe4 {[%emt 0:02:35]} 32. Rg3 {[%emt 0:00:05]} Qh6 {[%emt 0:00:05]} 33. Rc1 {[%emt 0:00:17]} Bg6 {[%emt 0:01:27]} 34. Qxd5 {[%emt 0:00:29]} Qh4 {[%emt 0:00:18]} 35. Kh2 {[%emt 0:01:32]} Qf6 {[%emt 0:00:25]} 36. Qd2 {[%emt 0:00:48]} Qb6 {[%emt 0:00:34]} 37. Qc3 {[%emt 0:00:20]} f6 {[%emt 0:00:32]} 38. Rf3 {[%emt 0:00:35]} Re4 {[%emt 0:00:39]} 39. Rf2 {[%emt 0:00:25]} Bf7 {[%emt 0:00:20]} 40. Ra1 {[%emt 0:00:00]} Rc4 {[%emt 0:00:00]} 41. Qa3 {[%emt 0:11:45]} Qc7 {[%emt 0:10:25]} 42. Rd2 {[%emt 0:02:12]} g5 {[%emt 0:06:13]} 43. Rad1 {[%emt 0:08:23]} gxf4 {[%emt 0:01:27]} 44. Rd7 {[%emt 0:00:12]} Qe5 {[%emt 0:00:44]} 45. exf4 {[%emt 0:00:10]} Qxf4+ {[%emt 0:05:41]} 46. Qg3+ {[%emt 0:00:05]} Qxg3+ {[%emt 0:04:25]} 47. Nxg3 {[%emt 0:00:08]} Bg6 {[%emt 0:01:43]} 48. Rxb7 {[%emt 0:01:47]} Rxa4 {[%emt 0:00:12]} 49. Ra7 {[%emt 0:00:42]} Rb4 {[%emt 0:00:52]} 50. Rxa5 {[%emt 0:00:37]} f5 {[%emt 0:03:02]} 51. Rd5 {[%emt 0:02:54]} f4 {[%emt 0:00:34]} 52. Nh5 {[%emt 0:01:35]} Rf8 {[%emt 0:01:19]} 53. Ra3 {[%emt 0:03:06]} Rb2 {[%emt 0:00:21]} 54. Rf3 {[%emt 0:00:54]} Be4 {[%emt 0:00:43]} 55. Rg5+ {[%emt 0:00:07]} Kh8 {[%emt 0:00:03]} 56. Rxf4 {[%emt 0:00:14]} Rxf4 {[%emt 0:00:16]} 57. Nxf4 {[%emt 0:00:04]} h6 {[%emt 0:00:04]} 58. Re5 {[%emt 0:00:26]} Bc2 {[%emt 0:01:00]} 59. Re2 {[%emt 0:00:52]} 1-0

[Event "Cracovia Chess Festival A 2021"]
[Site "Cracow"]
[Date "2022.01.03"]
[Round "8.39"]
[White "Dzwierzynski, Bartosz"]
[Black "Golenia, Jan"]
[Result "1-0"]
[ECO "E20"]
[WhiteElo "2100"]
[BlackElo "2149"]
[Annotator "ChessBase"]
[PlyCount "77"]
[EventDate "2021.12.27"]
[EventCountry "POL"]
[SourceTitle "playchess.com"]
[Source "ChessBase"]
[SourceQuality "1"]
[TimeControl "40/5400+30:1800+30"]

1. d4 {[%emt 0:00:02]} Nf6 {[%emt 0:00:24]} 2. c4 {[%emt 0:00:05]} e6 {[%emt 0:00:02]} 3. Nc3 {[%emt 0:00:06]} Bb4 {[%emt 0:00:22]} 4. f3 {[%emt 0:00:05]} c5 {[%emt 0:00:20]} 5. d5 {[%emt 0:01:38]} O-O {[%emt 0:00:27]} 6. e4 {[%emt 0:00:04]} Re8 {[%emt 0:00:03]} 7. Nge2 {[%emt 0:01:35]} d6 {[%emt 0:03:43]} 8. Ng3 {[%emt 0:05:51]} exd5 {[%emt 0:02:23]} 9. cxd5 {[%emt 0:00:07]} Nbd7 {[%emt 0:00:17]} 10. Be2 {[%emt 0:01:13]} Ne5 {[%emt 0:01:36]} 11. O-O {[%emt 0:00:30]} c4 {[%emt 0:02:47]} 12. Be3 {[%emt 0:03:28]} a6 {[%emt 0:04:50]} 13. a4 {[%emt 0:03:52]} Bd7 {[%emt 0:04:45]} 14. Bd4 {[%emt 0:01:10]} Rc8 {[%emt 0:06:45]} 15. Kh1 {[%emt 0:22:15]} Bc5 {[%emt 0:38:28]} 16. Bxc5 {[%emt 0:04:30]} Rxc5 {[%emt 0:01:21]} 17. Qd4 {[%emt 0:01:20]} Qc7 {[%emt 0:00:32]} 18. f4 {[%emt 0:01:54]} Ng6 {[%emt 0:05:48]} 19. e5 {[%emt 0:15:09]} dxe5 {[%emt 0:05:45]} 20. fxe5 {[%emt 0:00:06]} Rxe5 {[%emt 0:00:44]} 21. Rxf6 {[%emt 0:00:51]} gxf6 {[%emt 0:01:02]} 22. Nge4 {[%emt 0:00:25]} Ra5 {[%emt 0:03:45]} 23. Bxc4 {[%emt 0:03:19]} b5 {[%emt 0:05:34]} 24. Bd3 {[%emt 0:05:58]} f5 {[%emt 0:00:48]} 25. Nf6+ {[%emt 0:04:24]} Kg7 {[%emt 0:00:46]} 26. d6 {[%emt 0:09:55]} Qd8 {[%emt 0:01:23]} 27. Nh5+ {[%emt 0:00:27]} Kh6 {[%emt 0:00:32]} 28. b4 {[%emt 0:00:52]} Kxh5 {[%emt 0:02:39]} 29. bxa5 {[%emt 0:00:25]} Qxa5 {[%emt 0:00:20]} 30. g4+ {[%emt 0:03:28]} Kh6 {[%emt 0:03:14]} 31. gxf5 {[%emt 0:01:47]} Bxf5 {[%emt 0:00:50]} 32. Bxf5 {[%emt 0:01:07]} Rxf5 {[%emt 0:00:06]} 33. d7 {[%emt 0:00:49]} Qd8 {[%emt 0:00:20]} 34. Re1 {[%emt 0:06:04]} Nf8 {[%emt 0:02:22]} 35. Qe3+ {[%emt 0:02:00]} Kg7 {[%emt 0:00:58]} 36. Rg1+ {[%emt 0:00:05]} Kf6 {[%emt 0:01:05]} 37. Qd4+ {[%emt 0:01:30]} Ke7 {[%emt 0:00:34]} 38. Qe4+ {[%emt 0:00:27]} Kf6 {[%emt 0:01:17]} 39. Qh4+ {[%emt 0:00:11]} 1-0

[Event "Cracovia Chess Festival A 2021"]
[Site "Cracow"]
[Date "2022.01.04"]
[Round "9.1"]
[White "Jarmula, Lukasz"]
[Black "Licznerski, Lukasz"]
[Result "1/2-1/2"]
[ECO "A48"]
[WhiteElo "2426"]
[BlackElo "2411"]
[Annotator "ChessBase"]
[PlyCount "71"]
[EventDate "2021.12.27"]
[EventCountry "POL"]
[SourceTitle "playchess.com"]
[Source "ChessBase"]
[SourceQuality "1"]
[TimeControl "40/5400+30:1800+30"]

1. d4 {[%emt 0:09:11]} Nf6 {[%emt 0:00:03]} 2. Nf3 {[%emt 0:00:06]} g6 {[%emt 0:00:23]} 3. c4 {[%emt 0:00:24]} Bg7 {[%emt 0:00:28]} 4. e3 {[%emt 0:00:08]} d6 {[%emt 0:06:36]} 5. Be2 {[%emt 0:01:25]} O-O {[%emt 0:01:03]} 6. Nc3 {[%emt 0:00:10]} Nbd7 {[%emt 0:01:40]} 7. O-O {[%emt 0:00:19]} e5 {[%emt 0:00:44]} 8. b4 {[%emt 0:00:18]} exd4 {[%emt 0:23:42]} 9. exd4 {[%emt 0:00:20]} c5 {[%emt 0:00:02]} 10. a3 {[%emt 0:01:10]} Nb6 {[%emt 0:07:36]} 11. Be3 {[%emt 0:08:00]} cxb4 {[%emt 0:08:10]} 12. axb4 {[%emt 0:00:08]} Bg4 {[%emt 0:01:05]} 13. Qb3 {[%emt 0:06:44]} Qc8 {[%emt 0:04:21]} 14. Nb5 {[%emt 0:09:04]} Bxf3 {[%emt 0:06:28]} 15. gxf3 {[%emt 0:00:56]} d5 {[%emt 0:01:40]} 16. c5 {[%emt 0:17:14]} Nc4 {[%emt 0:00:19]} 17. Bxc4 {[%emt 0:00:08]} dxc4 {[%emt 0:00:01]} 18. Qxc4 {[%emt 0:00:08]} Qh3 {[%emt 0:00:19]} 19. Ra3 {[%emt 0:05:10]} Qxf3 {[%emt 0:23:41]} 20. Bg5 {[%emt 0:02:44]} Qd5 {[%emt 0:00:51]} 21. Qxd5 {[%emt 0:03:42]} Nxd5 {[%emt 0:00:02]} 22. Rxa7 {[%emt 0:00:40]} Rxa7 {[%emt 0:01:51]} 23. Nxa7 {[%emt 0:00:07]} Nxb4 {[%emt 0:01:44]} 24. Rb1 {[%emt 0:04:03]} Nc6 {[%emt 0:00:41]} 25. Rxb7 {[%emt 0:02:43]} Nxa7 {[%emt 0:00:24]} 26. Rxa7 {[%emt 0:00:06]} Bxd4 {[%emt 0:00:03]} 27. Rc7 {[%emt 0:01:09]} Kg7 {[%emt 0:01:00]} 28. Be7 {[%emt 0:07:00]} Ra8 {[%emt 0:00:57]} 29. Bd6 {[%emt 0:03:32]} Ra2 {[%emt 0:01:25]} 30. Bg3 {[%emt 0:00:13]} Rc2 {[%emt 0:00:28]} 31. c6 {[%emt 0:00:25]} Kf6 {[%emt 0:01:30]} 32. Rd7 {[%emt 0:05:44]} Be5 {[%emt 0:00:24]} 33. Bxe5+ {[%emt 0:01:21]} Kxe5 {[%emt 0:00:01]} 34. Rxf7 {[%emt 0:00:10]} Rxc6 {[%emt 0:00:02]} 35. Rxh7 {[%emt 0:00:09]} Kf6 {[%emt 0:00:01]} 36. Kg2 {[%emt 0:00:10]} 1/2-1/2

[Event "Cracovia Chess Festival A 2021"]
[Site "Cracow"]
[Date "2022.01.04"]
[Round "9.2"]
[White "Sengupta, Deep"]
[Black "Zylka, Stanislaw"]
[Result "1-0"]
[ECO "C03"]
[WhiteElo "2520"]
[BlackElo "2406"]
[Annotator "ChessBase"]
[PlyCount "85"]
[EventDate "2021.12.27"]
[EventCountry "POL"]
[SourceTitle "playchess.com"]
[Source "ChessBase"]
[SourceQuality "1"]
[TimeControl "40/5400+30:1800+30"]

1. e4 {[%emt 0:00:12]} e6 {[%emt 0:11:44]} 2. d4 d5 {[%emt 0:00:08]} 3. Nd2 {[%emt 0:00:06]} Be7 {[%emt 0:00:06]} 4. Ngf3 {[%emt 0:01:57]} Nf6 {[%emt 0:00:07]} 5. e5 {[%emt 0:01:51]} Nfd7 {[%emt 0:00:07]} 6. Bd3 {[%emt 0:00:05]} c5 {[%emt 0:00:07]} 7. c3 {[%emt 0:00:02]} b6 {[%emt 0:00:08]} 8. Qe2 {[%emt 0:01:22]} a5 {[%emt 0:00:23]} 9. a4 {[%emt 0:02:09]} Ba6 {[%emt 0:00:30]} 10. Bb5 {[%emt 0:00:07]} O-O {[%emt 0:01:36]} 11. O-O {[%emt 0:00:04]} Qc8 {[%emt 0:00:57]} 12. Rd1 {[%emt 0:06:19]} Nc6 {[%emt 0:04:52]} 13. Nf1 {[%emt 0:01:39]} cxd4 {[%emt 0:26:21]} 14. cxd4 {[%emt 0:01:23]} Bxb5 {[%emt 0:00:21]} 15. axb5 {[%emt 0:09:21]} Nb4 {[%emt 0:02:53]} 16. Ne3 {[%emt 0:02:22]} Ra7 {[%emt 0:02:05]} 17. Bd2 {[%emt 0:00:06]} Rc7 {[%emt 0:00:22]} 18. Bc3 {[%emt 0:01:32]} f5 {[%emt 0:18:53]} 19. Rdc1 {[%emt 0:08:45]} f4 {[%emt 0:12:19]} 20. Nf1 {[%emt 0:01:53]} Rf7 {[%emt 0:01:17]} 21. Qd1 {[%emt 0:02:48]} Nf8 {[%emt 0:00:15]} 22. Ne1 {[%emt 0:06:13]} Qe8 {[%emt 0:00:41]} 23. Qe2 {[%emt 0:00:05]} Ng6 {[%emt 0:00:48]} 24. Nd2 {[%emt 0:00:35]} Bf8 {[%emt 0:03:58]} 25. Ndf3 {[%emt 0:01:48]} Rc4 {[%emt 0:00:44]} 26. Bxb4 {[%emt 0:16:31]} Rxb4 {[%emt 0:00:02]} 27. Rc6 {[%emt 0:00:14]} Ne7 {[%emt 0:00:40]} 28. Rxb6 {[%emt 0:03:28]} Nf5 {[%emt 0:00:02]} 29. Qd2 {[%emt 0:05:54]} h6 {[%emt 0:02:17]} 30. Rxa5 {[%emt 0:03:15]} g5 {[%emt 0:00:38]} 31. h3 {[%emt 0:00:47]} Rc4 {[%emt 0:01:28]} 32. Raa6 {[%emt 0:02:55]} Bb4 {[%emt 0:00:11]} 33. Qd1 {[%emt 0:00:07]} Rfc7 {[%emt 0:04:14]} 34. Nd3 {[%emt 0:08:25]} Bf8 {[%emt 0:01:03]} 35. Rxe6 {[%emt 0:06:32]} Qxb5 {[%emt 0:00:02]} 36. Rf6 {[%emt 0:00:22]} Nxd4 {[%emt 0:01:54]} 37. Ra8 {[%emt 0:02:44]} Rc1 {[%emt 0:01:02]} 38. Nxc1 {[%emt 0:00:03]} Rxc1 {[%emt 0:00:05]} 39. Raxf8+ {[%emt 0:00:53]} Kg7 {[%emt 0:00:01]} 40. R8f7+ {[%emt 0:00:00]} Kg8 {[%emt 0:00:00]} 41. Qxc1 {[%emt 0:00:15]} Ne2+ {[%emt 0:00:15]} 42. Kh2 {[%emt 0:00:05]} Nxc1 {[%emt 0:00:08]} 43. e6 {[%emt 0:00:10]} 1-0

[Event "Cracovia Chess Festival A 2021"]
[Site "Cracow"]
[Date "2022.01.04"]
[Round "9.5"]
[White "Kozak, Antoni"]
[Black "Golubka, Petro"]
[Result "1-0"]
[ECO "B06"]
[WhiteElo "2356"]
[BlackElo "2408"]
[Annotator "ChessBase"]
[PlyCount "137"]
[EventDate "2021.12.27"]
[EventCountry "POL"]
[SourceTitle "playchess.com"]
[Source "ChessBase"]
[SourceQuality "1"]
[TimeControl "40/5400+30:1800+30"]

1. Nf3 {[%emt 0:02:35]} g6 {[%emt 0:09:02]} 2. d4 {[%emt 0:04:28]} Bg7 {[%emt 0:06:52]} 3. e4 {[%emt 0:01:28]} d6 {[%emt 0:00:12]} 4. Nc3 {[%emt 0:02:18]} a6 {[%emt 0:00:48]} 5. h3 {[%emt 0:04:24]} b5 {[%emt 0:00:39]} 6. Bd3 {[%emt 0:01:40]} Bb7 {[%emt 0:00:46]} 7. O-O {[%emt 0:03:20]} Nd7 {[%emt 0:00:39]} 8. Ne2 {[%emt 0:00:29]} Ngf6 {[%emt 0:02:11]} 9. Ng3 {[%emt 0:01:01]} c5 {[%emt 0:01:37]} 10. c3 {[%emt 0:00:38]} O-O {[%emt 0:00:06]} 11. Be3 {[%emt 0:21:32]} e5 {[%emt 0:04:21]} 12. d5 {[%emt 0:05:59]} c4 {[%emt 0:00:24]} 13. Bc2 {[%emt 0:00:21]} Qc7 {[%emt 0:00:56]} 14. Qd2 {[%emt 0:01:28]} Kh8 {[%emt 0:03:46]} 15. Nh2 {[%emt 0:03:01]} h5 {[%emt 0:01:07]} 16. f4 {[%emt 0:03:08]} exf4 {[%emt 0:07:50]} 17. Rxf4 {[%emt 0:01:21]} Ne5 {[%emt 0:05:20]} 18. Rf2 {[%emt 0:08:51]} Nh7 {[%emt 0:10:46]} 19. Nf3 {[%emt 0:01:55]} Nxf3+ {[%emt 0:06:43]} 20. Rxf3 {[%emt 0:01:23]} Qe7 {[%emt 0:01:51]} 21. Ne2 {[%emt 0:06:47]} Bc8 {[%emt 0:05:16]} 22. Nd4 {[%emt 0:05:41]} Bd7 {[%emt 0:07:38]} 23. Rff1 {[%emt 0:00:57]} Kg8 {[%emt 0:01:46]} 24. Bf4 {[%emt 0:00:39]} Be5 {[%emt 0:05:01]} 25. Nf3 {[%emt 0:03:03]} Bxf4 {[%emt 0:01:03]} 26. Qxf4 {[%emt 0:00:05]} Rad8 {[%emt 0:02:35]} 27. a4 {[%emt 0:01:01]} bxa4 {[%emt 0:01:48]} 28. Bxa4 {[%emt 0:00:50]} Nf6 {[%emt 0:01:40]} 29. Nd2 {[%emt 0:02:22]} Bxa4 {[%emt 0:00:21]} 30. Rxa4 {[%emt 0:00:21]} Nd7 {[%emt 0:00:05]} 31. Rxc4 {[%emt 0:02:39]} Ne5 {[%emt 0:00:40]} 32. Ra4 {[%emt 0:00:29]} Rb8 {[%emt 0:00:05]} 33. b3 {[%emt 0:00:59]} Qc7 {[%emt 0:02:26]} 34. Qe3 {[%emt 0:00:56]} Rb6 {[%emt 0:01:24]} 35. c4 {[%emt 0:01:31]} Qb7 {[%emt 0:01:10]} 36. Ra3 {[%emt 0:01:04]} Nd7 {[%emt 0:01:37]} 37. Nf3 {[%emt 0:04:38]} Nc5 {[%emt 0:03:22]} 38. e5 {[%emt 0:02:03]} Qe7 {[%emt 0:00:52]} 39. Re1 {[%emt 0:01:25]} dxe5 {[%emt 0:01:00]} 40. Qxe5 {[%emt 0:00:00]} Qxe5 {[%emt 0:00:00]} 41. Rxe5 {[%emt 0:02:46]} Nxb3 {[%emt 0:04:17]} 42. d6 {[%emt 0:05:57]} Rd8 {[%emt 0:00:34]} 43. c5 {[%emt 0:00:56]} Nxc5 {[%emt 0:00:08]} 44. Rxc5 {[%emt 0:00:04]} Rdxd6 {[%emt 0:00:16]} 45. Ra2 {[%emt 0:02:09]} Rbc6 {[%emt 0:00:30]} 46. Rxc6 {[%emt 0:01:41]} Rxc6 {[%emt 0:00:01]} 47. Ne5 {[%emt 0:00:14]} Rc1+ {[%emt 0:05:25]} 48. Kh2 {[%emt 0:00:51]} Re1 {[%emt 0:00:26]} 49. Nd3 {[%emt 0:00:38]} Re3 {[%emt 0:00:51]} 50. Nc5 {[%emt 0:00:09]} Kg7 {[%emt 0:00:51]} 51. Rxa6 {[%emt 0:00:11]} Re5 {[%emt 0:01:26]} 52. Rc6 {[%emt 0:00:41]} h4 {[%emt 0:01:53]} 53. Rc7 {[%emt 0:01:31]} g5 {[%emt 0:00:35]} 54. Nd3 {[%emt 0:04:31]} Rf5 {[%emt 0:02:55]} 55. Rc5 {[%emt 0:05:13]} Kg6 {[%emt 0:00:18]} 56. Rxf5 {[%emt 0:03:10]} Kxf5 {[%emt 0:00:01]} 57. Kg1 {[%emt 0:08:08]} Ke4 {[%emt 0:00:18]} 58. Ne1 {[%emt 0:00:43]} Ke3 {[%emt 0:00:22]} 59. Nf3 {[%emt 0:00:31]} f6 {[%emt 0:00:14]} 60. Kf1 {[%emt 0:00:06]} Ke4 {[%emt 0:01:19]} 61. Kf2 {[%emt 0:00:38]} Kf4 {[%emt 0:00:05]} 62. Nh2 {[%emt 0:00:13]} Ke4 {[%emt 0:00:25]} 63. Ke2 {[%emt 0:00:17]} Kf4 {[%emt 0:00:09]} 64. Kf2 {[%emt 0:00:01]} Ke4 {[%emt 0:00:38]} 65. Ng4 {[%emt 0:00:14]} f5 {[%emt 0:00:32]} 66. Nh2 {[%emt 0:00:03]} Kf4 {[%emt 0:00:16]} 67. Nf3 {[%emt 0:00:12]} g4 {[%emt 0:00:04]} 68. Nxh4 {[%emt 0:00:59]} Kg5 {[%emt 0:00:05]} 69. hxg4 {[%emt 0:00:41]} 1-0

[Event "Cracovia Chess Festival A 2021"]
[Site "Cracow"]
[Date "2022.01.04"]
[Round "9.7"]
[White "Niedbala, Bartlomiej"]
[Black "Pniaczek, Marek"]
[Result "1-0"]
[ECO "A50"]
[WhiteElo "2385"]
[BlackElo "2329"]
[Annotator "ChessBase"]
[PlyCount "55"]
[EventDate "2021.12.27"]
[EventCountry "POL"]
[SourceTitle "playchess.com"]
[Source "ChessBase"]
[SourceQuality "1"]
[TimeControl "40/5400+30:1800+30"]

1. d4 {[%emt 0:07:08]} Nf6 {[%emt 0:00:05]} 2. c4 {[%emt 0:00:06]} b6 {[%emt 0:00:10]} 3. Nc3 {[%emt 0:00:08]} Bb7 {[%emt 0:00:22]} 4. Qc2 {[%emt 0:00:08]} e6 {[%emt 0:00:33]} 5. e4 {[%emt 0:00:55]} Bb4 {[%emt 0:10:09]} 6. Bd3 {[%emt 0:01:35]} Nc6 {[%emt 0:14:16]} 7. Nf3 {[%emt 0:05:49]} d5 {[%emt 0:14:06]} 8. cxd5 {[%emt 0:05:30]} exd5 {[%emt 0:00:25]} 9. e5 {[%emt 0:00:27]} Ne4 {[%emt 0:03:07]} 10. O-O {[%emt 0:07:00]} Bxc3 {[%emt 0:02:55]} 11. bxc3 {[%emt 0:00:33]} Ne7 {[%emt 0:05:37]} 12. Ng5 {[%emt 0:05:15]} Nxg5 {[%emt 0:00:52]} 13. Bxg5 {[%emt 0:00:02]} h6 {[%emt 0:00:50]} 14. Bh4 {[%emt 0:00:47]} Qd7 {[%emt 0:11:35]} 15. f4 {[%emt 0:00:02]} O-O-O {[%emt 0:05:19]} 16. f5 {[%emt 0:01:12]} Kb8 {[%emt 0:02:17]} 17. a4 {[%emt 0:03:54]} a5 {[%emt 0:00:10]} 18. Bb5 {[%emt 0:00:48]} c6 {[%emt 0:00:29]} 19. Bd3 {[%emt 0:00:36]} Ka7 {[%emt 0:00:23]} 20. Rae1 {[%emt 0:00:42]} Rde8 {[%emt 0:01:00]} 21. e6 {[%emt 0:04:08]} fxe6 {[%emt 0:00:05]} 22. fxe6 {[%emt 0:00:02]} Qd8 {[%emt 0:00:20]} 23. Bg6 {[%emt 0:00:35]} Ref8 {[%emt 0:00:05]} 24. Rf7 {[%emt 0:00:09]} Re8 {[%emt 0:00:45]} 25. Rxg7 {[%emt 0:05:10]} Rhg8 {[%emt 0:00:13]} 26. Rxg8 {[%emt 0:01:15]} Rxg8 {[%emt 0:00:01]} 27. Bh5 {[%emt 0:03:13]} Ba6 {[%emt 0:02:23]} 28. Qh7 {[%emt 0:00:20]} 1-0

[Event "Cracovia Chess Festival A 2021"]
[Site "Cracow"]
[Date "2022.01.04"]
[Round "9.8"]
[White "Lewtak, Damian"]
[Black "Tsaknakis, Zisis"]
[Result "1-0"]
[ECO "D00"]
[WhiteElo "2383"]
[BlackElo "2202"]
[Annotator "ChessBase"]
[PlyCount "121"]
[EventDate "2021.12.27"]
[EventCountry "POL"]
[SourceTitle "playchess.com"]
[Source "ChessBase"]
[SourceQuality "1"]
[TimeControl "40/5400+30:1800+30"]

1. d4 {[%emt 0:00:25]} d5 {[%emt 0:06:11]} 2. c3 {[%emt 0:00:13]} Nf6 {[%emt 0:00:44]} 3. Bf4 {[%emt 0:00:07]} c5 {[%emt 0:02:45]} 4. e3 {[%emt 0:00:07]} Nc6 {[%emt 0:00:37]} 5. Nd2 {[%emt 0:00:05]} Qb6 {[%emt 0:02:36]} 6. Qb3 {[%emt 0:00:27]} c4 {[%emt 0:01:15]} 7. Qc2 {[%emt 0:00:21]} Nh5 {[%emt 0:02:32]} 8. Bg5 {[%emt 0:00:38]} h6 {[%emt 0:02:28]} 9. Bh4 {[%emt 0:00:12]} g5 {[%emt 0:01:27]} 10. Be2 {[%emt 0:00:44]} gxh4 {[%emt 0:10:09]} 11. Bxh5 {[%emt 0:00:22]} e5 {[%emt 0:00:14]} 12. dxe5 {[%emt 0:03:52]} Nxe5 {[%emt 0:00:03]} 13. Be2 {[%emt 0:00:06]} Rg8 {[%emt 0:12:16]} 14. Ngf3 {[%emt 0:00:07]} Nxf3+ {[%emt 0:00:38]} 15. Bxf3 {[%emt 0:02:53]} Be6 {[%emt 0:00:34]} 16. b3 {[%emt 0:07:06]} cxb3 {[%emt 0:00:02]} 17. Nxb3 {[%emt 0:00:10]} Rc8 {[%emt 0:08:55]} 18. O-O {[%emt 0:00:36]} Rg5 {[%emt 0:01:21]} 19. Nd4 {[%emt 0:02:07]} Bd7 {[%emt 0:09:12]} 20. Rab1 {[%emt 0:10:08]} Qc7 {[%emt 0:00:33]} 21. Qb3 {[%emt 0:00:23]} b6 {[%emt 0:07:02]} 22. Bxd5 {[%emt 0:03:26]} Qxc3 {[%emt 0:00:15]} 23. Bxf7+ {[%emt 0:03:31]} Ke7 {[%emt 0:00:02]} 24. Nf3 {[%emt 0:02:36]} Rg7 {[%emt 0:04:53]} 25. Qxc3 {[%emt 0:06:28]} Rc7 26. Qc4 Rxc4 {[%emt 0:00:34]} 27. Be6 Rc3 28. Bd5 {[%emt 0:01:08]} h3 {[%emt 0:04:56]} 29. g3 {[%emt 0:00:11]} Kd6 {[%emt 0:05:38]} 30. Rfd1 {[%emt 0:03:25]} Bg4 {[%emt 0:03:10]} 31. Be4+ {[%emt 0:00:07]} Ke6 {[%emt 0:01:41]} 32. Nd4+ {[%emt 0:03:32]} Ke5 {[%emt 0:03:19]} 33. Bf3 {[%emt 0:00:30]} Bxf3 {[%emt 0:02:27]} 34. Nxf3+ {[%emt 0:00:06]} Kf6 {[%emt 0:02:16]} 35. Rd2 {[%emt 0:02:57]} Rgc7 {[%emt 0:00:45]} 36. Nd4 {[%emt 0:33:35]} Bb4 {[%emt 0:04:41]} 37. Kf1 {[%emt 0:02:05]} Rc1+ {[%emt 0:01:02]} 38. Rd1 {[%emt 0:00:12]} Rxd1+ {[%emt 0:00:09]} 39. Rxd1 {[%emt 0:00:18]} Rc3 {[%emt 0:01:38]} 40. Nb5 {[%emt 0:03:21]} Rc2 {[%emt 0:00:06]} 41. a3 {[%emt 0:35:07]} Bc5 {[%emt 0:30:44]} 42. Nxa7 {[%emt 0:00:00]} Bxa3 {[%emt 0:00:00]} 43. Nb5 {[%emt 0:00:00]} Bc5 {[%emt 0:00:00]} 44. Rd5 {[%emt 0:00:00]} Kg6 {[%emt 0:00:00]} 45. Nd4 {[%emt 0:00:00]} Rd2 {[%emt 0:00:00]} 46. Rd8 {[%emt 0:00:00]} h5 {[%emt 0:00:13]} 47. Rg8+ {[%emt 0:00:00]} Kh7 {[%emt 0:00:36]} 48. Rg5 {[%emt 0:00:00]} Bxd4 {[%emt 0:02:26]} 49. exd4 {[%emt 0:00:00]} Kh6 {[%emt 0:00:05]} 50. Rb5 {[%emt 0:00:00]} Rxd4 {[%emt 0:00:40]} 51. Rxb6+ {[%emt 0:00:00]} Kg5 {[%emt 0:00:03]} 52. f4+ {[%emt 0:00:00]} Kg4 {[%emt 0:01:32]} 53. Ke2 {[%emt 0:00:00]} h4 {[%emt 0:00:43]} 54. Rg6+ {[%emt 0:00:00]} Kh5 {[%emt 0:00:48]} 55. Rg5+ {[%emt 0:00:00]} Kh6 {[%emt 0:00:02]} 56. Rg4 {[%emt 0:00:00]} hxg3 {[%emt 0:00:31]} 57. hxg3 {[%emt 0:00:00]} Ra4 {[%emt 0:00:54]} 58. Rh4+ {[%emt 0:00:00]} Kg7 {[%emt 0:00:31]} 59. Kf3 {[%emt 0:00:00]} Ra3+ {[%emt 0:00:34]} 60. Kg4 {[%emt 0:00:00]} Kg6 {[%emt 0:00:10]} 61. Rxh3 {[%emt 0:00:00]} 1-0